Workbook

Sheet I
A1: Annexure- 1 to the Directors' Report
A3: Form No. MGT-9
A4: EXTRACT OF ANNUAL RETURN as on the financial year ended on 31.03.2020
A5: [Pursuant to section 92(3) of the Companies Act, 2013 and rule 12(1) of the Companies (Management and Administration) Rules, 2014]
A6: I. REGISTRATION AND OTHER DETAILS
A7: (I) | B7: CIN NO. | D7: L24232DL1988PLC030958
A9: (II) | B9: Registration Date | D9: 16th March, 1988
A11: (III) | B11: Name of the Company | D11: Indraprastha Medical Corporation Limited
A14: (IV) | B14: Category/ Sub Category of the Company | D14: Company Limited by Shares/ Indian Non-government company
A16: (V) | B16: Address of the Registered Office and Contact Details | D16: Sarita Vihar, Delhi-Mathura Road, New Delhi-110076. Phone- +91-011-26925858,26925801, Fax: +91-011-26823629 Email: imclshares@apollohospitalsdelhi.com
A18: (VI) | B18: Whether Listed Company | D18: YES
B20: Name of the Stock Exchange where equity shares are listed. | D20: National Stock Exchange of India Ltd (NSE), Mumbai Stock Code: INDRAMEDCO
D23: BSE Ltd (BSE), Mumbai Stock Code- 532150
A26: (VII) | B26: Name, Address and Contact details of Registrar and Transfer Agent, if any | D26: Link Intime India Private Limited. Noble Heights, 1st Floor, Plot NH 2 C-1 Block LSC, Near Savitri Market, Janakpuri, New Delhi - 110058. Phone: +91-011- 49411000 Fax: +91-011- 4941 1000 Email id: -delhi@linkintime.co.in

Sheet II
A2: II. | B2: PRINCIPAL BUSINESS ACTIVITIES OF THE COMPANY
B4: All the business activities contributing 10% or more of the total turnover of the company shall be stated:-
A6: S.No. | B6: Name and Description of main products/services | C6: NIC Code of the Product/service | D6: % to total turnover of the company
A7: 1 | B7: Healthcare business | C7: 86100 | D7: 1

Sheet III
A2: III | B2: PARTICULARS OF HOLDING, SUBSIDIARY AND ASSOCIATE COMPANY : NONE
A4: S. No. | B4: Name and Address of the Company | C4: CIN/GLN | D4: Holding/Subsidiary/Associate Company | E4: % of shares held | F4: Applicable Section
A5: 1
A6: 2
A7: 3
A8: 4

Sheet IV
A2: IV | B2: SHARE HOLDING PATTERN (Equity Share Capital Breakup as percentage of Total Equity)
A4: I) | B4: Category-wise Share Holding
B6: Category of Shareholders | C6: No. of Shares held at the beginning of the year (1st April, 2019) | G6: No. of Shares held at the end of the year (31st March, 2020) | K6: % Change during the year
C7: Demat | D7: Physical | E7: Total | F7: % of Total Shares | G7: Demat | H7: Physical | I7: Total | J7: % of Total Shares
B8: A. Promoters:-
B9: 1. Indian
B10: a) Individual/HUF | C10: 864336 | D10: 5 | E10: 864341 | F10: 0.94 | G10: 864336 | H10: 5 | I10: =G10+H10 -> 864341 | J10: =I10/91673000*100 -> 0.942852312 | K10: -
B11: b) Central Govt./ State Govt (s) | C11: - | D11: 23834196 | E11: 23834196 | F11: 26 | G11: - | H11: 23834196 | I11: 23834196 | J11: 25.99914479 | K11: -
B12: c) Bodies Corp. | C12: 20578163 | D12: - | E12: 20578163 | F12: 22.45 | G12: 20578163 | H12: - | I12: 20578163 | J12: 22.44735418 | K12: -
B13: d) Banks / FI | C13: - | D13: - | E13: - | F13: 0 | G13: - | H13: - | I13: - | J13: 0 | K13: -
B14: e) Any Other | C14: - | D14: - | E14: - | F14: 0 | G14: - | I14: - | J14: 0 | K14: -
B15: Sub Total (A) (1) | C15: =SUM(C10:C14) -> 21442499 | D15: 23834201 | E15: =SUM(E10:E14) -> 45276700 | F15: =SUM(F10:F14) -> 49.39 | G15: =G10+G12 -> 21442499 | H15: =H10+H11 -> 23834201 | I15: =I10+I11+I12 -> 45276700 | J15: 49.38935128 | K15: -
B16: 2. Foreign
B17: a) NRI's Individual | C17: - | D17: - | E17: - | F17: - | G17: - | H17: - | I17: - | J17: - | K17: -
B18: b) Other - Individuals | C18: - | D18: - | E18: - | F18: - | G18: - | H18: - | I18: - | J18: - | K18: -
B19: c) Bodies Corp. | C19: 1475000 | D19: - | E19: 1475000 | F19: 1.61 | G19: 1475000 | H19: - | I19: 1475000 | J19: =I19/91673000*100 -> 1.608979743 | K19: -
B20: d) Banks / FI | C20: - | D20: - | E20: - | F20: - | G20: - | H20: - | I20: - | J20: - | K20: -
B21: f) Any Other | C21: - | D21: - | E21: - | F21: - | G21: - | H21: - | I21: - | J21: - | K21: -
B22: Sub Total (A) (2) | C22: =SUM(C17:C21) -> 1475000 | D22: - | E22: =SUM(E17:E21) -> 1475000 | F22: =SUM(F17:F21) -> 1.61 | G22: 1475000 | H22: - | I22: 1475000 | J22: 1.61 | K22: -
B23: Total Shareholding of Promoter (A) = (A) (1) + (A) (2) | C23: =C15+C22 -> 22917499 | D23: =SUM(D15:D22) -> 23834201 | E23: =E15+E22 -> 46751700 | F23: =F15+F22 -> 51 | G23: =G22+G15 -> 22917499 | H23: =H15 -> 23834201 | I23: =I22+I15 -> 46751700 | J23: =I23/91673000*100 -> 50.99833102 | K23: -
B24: B. Public Shareholding
B25: 1. Institutions
B26: a) Mutual Funds | C26: - | D26: - | E26: - | F26: - | G26: - | H26: - | I26: - | J26: - | K26: -
B27: b) Banks /FI | C27: - | D27: - | E27: - | F27: - | G27: - | H27: - | I27: - | J27: - | K27: -
B28: c) Central Govt. | C28: - | D28: - | E28: - | F28: - | G28: - | H28: - | I28: - | J28: - | K28: -
B29: d) State Govt (s) | C29: - | D29: - | E29: - | F29: - | G29: - | H29: - | I29: - | J29: - | K29: -
B30: e) Venture Capital Funds | C30: - | D30: - | E30: - | F30: - | G30: - | H30: - | I30: - | J30: - | K30: -
B31: f) Insurance Companies | C31: - | D31: - | E31: - | F31: - | G31: 11570 | H31: 0 | I31: 11570 | J31: 0.01 | K31: 0.01
B32: g) Foreign Institutuional Investors | C32: - | D32: - | E32: - | F32: - | G32: - | H32: - | I32: - | J32: - | K32: -
B33: h)Foreign Venture Capital | C33: - | D33: - | E33: - | F33: - | G33: - | H33: - | I33: - | J33: - | K33: -
B34: i) Foreign Portfolio Investor | C34: - | D34: - | E34: - | F34: -
B35: J)Foreign Institutional /Banks | C35: 265904 | D35: 14600 | E35: 280504 | F35: 0.31 | G35: 90464 | H35: 14600 | I35: 105064 | J35: 0.11 | K35: (0.19)
B36: K) Funds others (specify) | C36: - | D36: - | E36: - | F36: - | K36: -
B37: Sub Total (B) (1) | C37: 265904 | D37: 14600 | E37: 280504 | F37: 0.31 | G37: 102034 | H37: 14600 | I37: 116634 | J37: 0.12 | K37: (0.18)
B38: 2. Non Institutions
B39: a) Bodies Corporate
B40: 1. Indian
B41: b)Individuals
B42: 1.Individual shareholders holding nominal share capital upto Rs.1 Lakh | C42: 15350665 | D42: 1434056 | E42: 16784721 | F42: 18.31 | G42: 15544942 | H42: 1277117 | I42: 16822059 | J42: 18.35 | K42: 0.04
B43: 2. Individual shareholders holding nominal share capital in excess of Rs.1 Lakh | C43: 10695778 | D43: 479198 | E43: 11174976 | F43: 12.19 | G43: 10856998 | H43: 463577 | I43: 11320575 | J43: 12.35 | K43: 0.16
B44: c) NBFC'S Registered with RBI | C44: 800 | D44: 0 | E44: 800 | F44: 0 | G44: 0 | H44: 0 | I44: 0 | J44: 0 | K44: 0
B45: d) Trust Employee | C45: 0 | D45: 0 | E45: 0 | F45: '0.0000 | G45: 1500 | H45: 0 | I45: 1500 | J45: 0 | K45: 0
B46: e) Others (specify)
B47: (e-i) Trusts | C47: 5470 | D47: 0 | E47: 5470 | F47: 0.01 | G47: 4170 | H47: 0 | I47: 4170 | J47: 0.01 | K47: 0
B48: (e-ii) Non Resident Indians ( Non Repat ) | C48: 339291 | D48: 0 | E48: 339291 | F48: 0.37 | G48: 360969 | H48: 0 | I48: 360969 | J48: 0.39 | K48: 0.02
B49: (e-iii) Non Resident Indians ( Repat ) | C49: 635954 | D49: 1009742 | E49: 1645696 | F49: 1.8 | G49: 681906 | H49: 941479 | I49: 1623385 | J49: 1.77 | K49: (0.03)
B50: (e-iv) Clearing members | C50: 289378 | D50: 0 | E50: 289378 | F50: 0.32 | G50: 85973 | H50: 0 | I50: 85973 | J50: 0.09 | K50: (0.22)
B51: (e-v) Hindu Undivided Families | C51: 1528326 | D51: 0 | E51: 1528326 | F51: 1.67 | G51: 1537184 | H51: 0 | I51: 1537184 | J51: 1.68 | K51: 0.01
B52: (e-vi) Body Corporate | C52: 12237863 | D52: 128600 | E52: 12366463 | F52: 13.49 | G52: 12374269 | H52: 125600 | I52: 12499869 | J52: 13.64 | K52: 0.15
B53: (e-vii) Foreign Nationals | C53: 31240 | D53: 0 | E53: 31240 | F53: 0.03 | G53: 0 | H53: 0 | I53: 0 | J53: 0 | K53: (0.03)
B54: (e-viii) IEPF | C54: 474435 | D54: 0 | E54: 474435 | F54: 0.52 | G54: 548982 | H54: 0 | I54: 548982 | J54: 0.6 | K54: 0.08
B55: (e-ix) Public PAC | C55: - | D55: - | E55: - | F55: - | G55: - | H55: - | I55: - | J55: -
B56: Sub Total (B) (2) | C56: =SUM(C42:C55) -> 41589200 | D56: =E56-C56 -> 3051596 | E56: =SUM(E42:E55) -> 44640796 | F56: =E56/91673000*100 -> 48.69568575 | G56: =SUM(G42:G55) -> 41996893 | H56: =SUM(H42:H55) -> 2807773 | I56: =SUM(I42:I55) -> 44804666 | J56: 48.87 | K56: 0.18
B58: Total Public Shareholding (B)= (B) 1 + (B) 2 | C58: =C37+C56 -> 41855104 | D58: =E58-C58 -> 3066196 | E58: =E37+E56 -> 44921300 | F58: =E58/91673000*100 -> 49.00166898 | G58: =G37+G56 -> 42098927 | H58: =H37+H56 -> 2822373 | I58: =I37+I56 -> 44921300 | J58: 49 | K58: =K37+K56 -> 0
B59: C. Shares held by Custodian for GDRs & ADRs | C59: - | D59: - | E59: - | F59: - | K59: -
B60: Grand Total A+B+C | C60: =G23+C58 -> 64772603 | D60: =E60-C60 -> 26900397 | E60: =I23+E58 -> 91673000 | F60: =E60/91673000*100 -> 100 | G60: =G23+G58 -> 65016426 | H60: =H58+H23 -> 26656574 | I60: =I58+I23 -> 91673000 | J60: 100 | K60: -
A63: (II) | B63: Shareholding of Promoters
A65: S.No. | B65: Shareholders Name | C65: Shareholding at the beginning of the year ( As on 1st April, 2019) | F65: Shareholding at the end of the year ( As on 31st March, 2020) | I65: % of change in shareholding during the year
C66: No. of Shares | D66: %of Total shares of the company | E66: % of shares pledged/encumbered to total shares | F66: No. of Shares | G66: %of Total shares of the company | H66: % of shares pledged/encumbered to total shares
A67: 1 | B67: Sucharitha P Reddy | C67: 160689 | D67: =((C67*100)/'[1]Table (I)(a)'!$D$69) -> 0.1752849803 | E67: 0 | F67: 160689 | G67: =((F67*100)/'[2]Table (I)(a)'!$D$69) -> 0.1752849803 | H67: 0 | I67: =H67-E67 -> 0
A68: 2 | B68: Sangita Reddy | C68: 8600 | D68: =((C68*100)/'[1]Table (I)(a)'!$D$69) -> 0.009381170028 | E68: 0 | F68: 8600 | G68: =((F68*100)/'[2]Table (I)(a)'!$D$69) -> 0.009381170028 | H68: 0 | I68: 0
A69: 3 | B69: Suneeta Reddy | C69: 138293 | D69: =((C69*100)/'[1]Table (I)(a)'!$D$69) -> 0.1508546682 | E69: 0 | F69: 138293 | G69: =((F69*100)/'[2]Table (I)(a)'!$D$69) -> 0.1508546682 | H69: 0 | I69: 0
A70: 4 | B70: Preetha Reddy | C70: 202650 | D70: =((C70*100)/'[1]Table (I)(a)'!$D$69) -> 0.2210574542 | E70: 0 | F70: 202650 | G70: =((F70*100)/'[2]Table (I)(a)'!$D$69) -> 0.2210574542 | H70: 0 | I70: 0
A71: 5 | B71: Shobana Kamineni | C71: 116918 | D71: =((C71*100)/'[1]Table (I)(a)'!$D$69) -> 0.1275380974 | E71: 0 | F71: 116918 | G71: =((F71*100)/'[2]Table (I)(a)'!$D$69) -> 0.1275380974 | H71: 0 | I71: 0
A72: 6 | B72: K S Baidwan | C72: 1 | D72: =((C72*100)/'[1]Table (I)(a)'!$D$69) -> 1.090833724e-06 | E72: 0 | F72: 1 | G72: =((F72*100)/'[2]Table (I)(a)'!$D$69) -> 1.090833724e-06 | H72: 0 | I72: 0
A73: 7 | B73: Prathap C Reddy | C73: 237187 | D73: =((C73*100)/'[1]Table (I)(a)'!$D$69) -> 0.2587315785 | E73: 0 | F73: 237187 | G73: =((F73*100)/'[2]Table (I)(a)'!$D$69) -> 0.2587315785 | H73: 0 | I73: 0
A74: 8 | B74: P V Jayakrishnan | C74: 1 | D74: =((C74*100)/'[1]Table (I)(a)'!$D$69) -> 1.090833724e-06 | E74: 0 | F74: 1 | G74: =((F74*100)/'[2]Table (I)(a)'!$D$69) -> 1.090833724e-06 | H74: 0 | I74: 0
A75: 9 | B75: Ramesh Chander | C75: 1 | D75: =((C75*100)/'[1]Table (I)(a)'!$D$69) -> 1.090833724e-06 | E75: 0 | F75: 1 | G75: =((F75*100)/'[2]Table (I)(a)'!$D$69) -> 1.090833724e-06 | H75: 0 | I75: 0
A76: 10 | B76: Vineeta Rai | C76: 1 | D76: =((C76*100)/'[1]Table (I)(a)'!$D$69) -> 1.090833724e-06 | E76: 0 | F76: 1 | G76: =((F76*100)/'[2]Table (I)(a)'!$D$69) -> 1.090833724e-06 | H76: 0 | I76: 0
A77: 11 | B77: President of India | C77: 23834196 | D77: =((C77*100)/'[1]Table (I)(a)'!$D$69) -> 25.99914479 | E77: 0 | F77: 23834196 | G77: =((F77*100)/'[2]Table (I)(a)'!$D$69) -> 25.99914479 | H77: 0 | I77: 0
A78: 12 | B78: Apollo Hospitals Enterprise Limited | C78: 20190740 | D78: =((C78*100)/'[1]Table (I)(a)'!$D$69) -> 22.02474011 | E78: 0 | F78: 20190740 | G78: =((F78*100)/'[2]Table (I)(a)'!$D$69) -> 22.02474011 | H78: 0 | I78: 0
A79: 13 | B79: PCR Investments Limited | C79: 387423 | D79: =((C79*100)/'[1]Table (I)(a)'!$D$69) -> 0.4226140739 | E79: 0 | F79: 387423 | G79: =((F79*100)/'[2]Table (I)(a)'!$D$69) -> 0.4226140739 | H79: 0 | I79: 0
A80: 14 | B80: Wedgewood Holdings Limited | C80: 1475000 | D80: =((C80*100)/'[1]Table (I)(a)'!$D$69) -> 1.608979743 | E80: 0 | F80: 1475000 | G80: =((F80*100)/'[2]Table (I)(a)'!$D$69) -> 1.608979743 | H80: 0 | I80: 0
B81: Total | C81: =SUM(C67:C80) -> 46751700 | D81: 50.99833102 | E81: 0 | F81: 46751700 | G81: 50.99833102 | H81: 0 | I81: 0
A83: (III) | B83: Change in Promoters' Shareholding (please specify, if there is no change)
A85: Sl. No. | C85: Shareholding at the beginning of the year (1st April, 2019) | E85: Cumulative Shareholding during the year (1st April, 2019 to 31st March, 2020)
C86: No. of Shares | D86: % of total shares of the company | E86: No. of Shares | F86: % of total shares of the company
B87: At the beginning of the year | C87: 0 | D87: 0 | E87: =C87 -> 0 | F87: 0
A88: ## | B88: Date wise Increase / Decrease in Promoters Share holding during the year specifying the reasons for increase / decrease (e.g. allotment / transfer / bonus/ sweat equity etc.) | C88: 0 | D88: 0 | E88: =E87+C88 -> 0 | F88: 0
B89: At the end of the year | E89: =E88+C89 -> 0 | F89: =E89/91670000*100 -> 0
A91: ## | B91: There is no change in promoters shareholding from 1st April, 2019 to 31st March, 2020 )
A93: (IV) | B93: Shareholding Pattern of top ten Shareholders (other than Directors, Promoters and Holders of GDRs and ADRs):
A94: Sl. No. | C94: Shareholding at the beginning of the year (1st April, 2019) | E94: Cumulative Shareholding during the year (1st April, 2019 to 31st March, 2020)
B95: For Each of the Top 10 Shareholders | C95: No. of Shares | D95: % of total shares of the company | E95: No. of Shares | F95: % of total shares of the company
A96: 1 | B96: HOUSING DEVELOPMENT FINANCE CORPORATION LIMITED
B97: At the beginning of the year | C97: 6146897 | D97: 6.70 | E97: 6146897 | F97: 6.70
B98: At the end of the year | E98: 6146897 | F98: 6.70
A100: 2 | B100: EMEDLIFE INSURANCE BROKING SERVICES LIMITED
B101: At the beginning of the year | C101: 1509174 | D101: 1.65 | E101: 1509174 | F101: 1.65
B102: 08 Nov 2019 | C102: 73 | D102: =C102/91673000*100 -> 7.963086187e-05 | E102: 1509247 | F102: =E102/91673000*100 -> 1.646337526
B103: 22 Nov 2019 | C103: (6700) | D103: -0.007308585952 | E103: 1502547 | F103: 1.63902894
B104: 29 Nov 2019 | C104: 1872 | D104: 0.002042040732 | E104: 1504419 | F104: 1.641070981
B105: 17 Jan 2020 | C105: (495) | D105: -0.0005399626935 | E105: 1503924 | F105: 1.640531018
B106: 24 Jan 2020 | C106: 1630 | D106: 0.00177805897 | E106: 1505554 | F106: 1.642309077
B107: 20 Mar 2020 | C107: 33834 | E107: 1539388 | F107: 1.679216345
B108: 27 Mar 2020 | C108: 3360 | D108: 0.003665201313 | E108: 1542748 | F108: 1.682881546
B109: At the end of the year | E109: 1542748 | F109: 1.68
A111: 3 | B111: CITADEL RESEARCH AND SOLUTIONS LIMITED
B112: At the beginning of the year | C112: 1185341 | D112: 1.29 | E112: =C112 -> 1185341 | F112: =D112 -> 1.29
B113: 10 May 2019 | C113: (10884) | D113: =C113/91673000*100 -> -0.01187263425 | E113: 1174457 | F113: 1.28
B114: 17 May 2019 | C114: 10907 | D114: =C114/91673000*100 -> 0.01189772343 | E114: 1185364 | F114: 1.29
B115: 24 May 2019 | C115: (1300) | D115: -0.001418083841 | E115: 1184064 | F115: 1.29
B116: 19 Jul 2019 | C116: 6854 | D116: 0.007476574346 | E116: 1190918 | F116: 1.30
B117: 26 Jul 2019 | C117: 2750 | D117: 0.002999792742 | E117: 1193668 | F117: 1.30
B118: 08 Nov 2019 | C118: 73 | D118: 7.963086187e-05 | E118: 1193741 | F118: 1.30
B119: 22 Nov 2019 | C119: (6700) | D119: -0.007308585952 | E119: 1187041 | F119: 1.30
B120: 29 Nov 2019 | C120: 3818 | D120: 0.004164803159 | E120: 1190859 | F120: 1.30
B121: 20 Mar 2020 | C121: 28682 | D121: 0.03128729288 | E121: 1219541 | F121: 1.33
B122: 27 Mar 2020 | C122: (9000) | D122: -0.009817503518 | E122: 1210541 | F122: 1.32
B123: At the end of the year | E123: 1210541 | F123: 1.32
A125: 4 | B125: MEENAKSHI NARAYANAN INVESTMENTS (P) LTD
B126: At the beginning of the year | C126: 900000 | D126: 0.9818 | E126: 900000 | F126: 0.98
B127: At the end of the year | E127: 900000 | F127: 0.98
A129: 5 | B129: GAGAN OMPRAKASH NAVANI
B130: At the beginning of the year | C130: 592006 | D130: =C130/91673000*100 -> 0.6457801097 | E130: =C130 -> 592006 | F130: 0.6457801097
B131: At the end of the year | E131: 592006 | F131: 0.65
A133: 6 | B133: INVESTOR EDUCATION AND PROTECTION FUND AUTHORITY MINISTRY OF CORPORATE AFFAIRS
B134: At the beginning of the year | C134: 474435 | D134: 0.52 | E134: =C134 -> 474435 | F134: =E134/91673000*100 -> 0.5175296979
B135: 31 Dec 2019 | C135: (200) | D135: 0.05 | E135: 474235 | F135: 0.5173
B136: 24 Jan 2020 | C136: 74747 | D136: =C136/91670000*100 -> 0.08153921676 | E136: 548982 | F136: 0.5988
B137: At the end of the year | E137: =E136 -> 548982 | F137: 0.5988480796
A139: 7 | B139: VISHWESHWAR REDDY.K
B140: At the beginning of the year | C140: 267992 | D140: 0.29 | E140: =C140 -> 267992 | F140: =D140 -> 0.29
B141: 24 May 2019 | C141: 5793 | D141: =C141/91673000*100 -> 0.006319199764 | E141: 273785 | F141: =E141/91673000*100 -> 0.2986539112
B142: 07 Jun 2019 | C142: 1164 | D142: =C142/91673000*100 -> 0.001269730455 | E142: 274949 | F142: =E142/91673000*100 -> 0.2999236416
B143: 26 Jul 2019 | C143: 23354 | D143: =C143/91673000*100 -> 0.0254753308 | E143: 298303 | F143: 0.3253989724
B144: 02 Aug 2019 | C144: (8100) | D144: -0.008835753166 | E144: 290203 | F144: 0.3165632193
B145: 16 Aug 2019 | C145: 3152 | D145: 0.003438307899 | E145: 293355 | F145: 0.3200015272
B146: 23 Aug 2019 | C146: 1080 | D146: 0.001178100422 | E146: 294435 | F146: 0.3211796276
B147: 20 Mar 2020 | C147: 32785 | D147: 0.03576298365 | E147: 327220 | F147: 0.3569426112
B148: 27 Mar 2020 | C148: 1800 | D148: 0.001963500704 | E148: 329020 | F148: 0.3589061119
B149: At the end of the year | E149: 329020 | F149: 0.36
A151: 8 | B151: MUKT CHETAN GUPTA
B152: At the beginning of the year | C152: 294408 | D152: 0.32 | E152: =C152 -> 294408 | F152: =D152 -> 0.32
B153: 29 Jun 2019 | C153: (10) | D153: 0.00 | E153: 294398 | F153: 0.32
B154: 07 Feb 2020 | C154: 7886 | D154: 0.01 | E154: 302284 | F154: 0.33
B155: At the end of the year | E155: 302284 | F155: 0.33
A157: 9 | B157: ANIRUDHA KUMAR
B158: At the beginning of the year | C158: 300000 | D158: 0.32 | E158: =C158 -> 300000 | F158: =D158 -> 0.32
B159: At the end of the year | E159: 300000 | F159: 0.32
A161: 10 | B161: KETAN A SHAH
B162: At the beginning of the year | C162: 743000 | D162: 0.81 | E162: =C162 -> 743000 | F162: =E162/91673000*100 -> 0.8104894571
B163: 17 May 2019 | C163: 2000 | D163: =C163/91673000*100 -> 0.002181667448 | E163: 745000 | F163: 0.8126711245
B164: 31 May 2019 | C164: (37989) | D164: -0.04143968235 | E164: 707011 | F164: 0.7712314422
B165: 12 Jul 2019 | C165: 1658 | D165: 0.001808602315 | E165: 708669 | F165: 0.7730400445
B166: 19 Jul 2019 | C166: 1831 | D166: 0.001997316549 | E166: 710500 | F166: 0.7750373611
B167: 26 Jul 2019 | C167: 1000 | D167: 0.001090833724 | E167: 711500 | F167: 0.7761281948
B168: 18 Oct 2019 | C168: 2000 | D168: 0.002181667448 | E168: 713500 | F168: 0.7783098622
B169: 25 Oct 2019 | C169: (2000) | D169: -0.002181667448 | E169: 711500 | F169: 0.7761281948
B170: 01 Nov 2019 | C170: (1337) | D170: -0.001458444689 | E170: 710163 | F170: 0.7746697501
B171: 08 Nov 2019 | C171: (135163) | D171: -0.1474403587 | E171: 575000 | F171: 0.6272293914
B172: 15 Nov 2019 | C172: (75000) | D172: -0.08181252932 | E172: 500000 | F172: 0.5454168621
B173: 22 Nov 2019 | C173: (120000) | D173: -0.1309000469 | E173: 380000 | F173: 0.4145168152
B174: 29 Nov 2019 | C174: (31000) | D174: -0.03381584545 | E174: 349000 | F174: 0.3807009698
B175: 27 Dec 2019 | C175: (11000) | D175: -0.01199917097 | E175: 338000 | F175: 0.3687017988
B176: 03 Jan 2020 | C176: (63000) | D176: -0.06872252463 | E176: 275000 | F176: 0.2999792742
B177: 10 Jan 2020 | C177: (175000) | D177: -0.1908959017 | E177: 100000 | F177: 0.1090833724
B178: 17 Jan 2020 | C178: (85000) | D178: -0.09272086656 | E178: 15000 | F178: 0.01636250586
B179: 24 Jan 2020 | C179: (8500) | D179: -0.009272086656 | E179: 6500 | F179: 0.007090419207
B180: 07 Feb 2020 | C180: 5500 | D180: 0.005999585483 | E180: 12000 | F180: 0.01309000469
B181: 14 Feb 2020 | C181: 4000 | D181: 0.004363334897 | E181: 16000 | F181: 0.01745333959
B182: 21 Feb 2020 | C182: 16000 | D182: 0.01745333959 | E182: 32000 | F182: 0.03490667917
B183: 28 Feb 2020 | C183: 7807 | D183: 0.008516138885 | E183: 39807 | F183: 0.04342281806
B184: 06 Mar 2020 | C184: 12193 | D184: 0.0133005356 | E184: 52000 | F184: 0.05672335366
B185: 13 Mar 2020 | C185: 21000 | D185: 0.02290750821 | E185: 73000 | F185: 0.07963086187
B186: 20 Mar 2020 | C186: 97000 | D186: =C186/91673000*100 -> 0.1058108712 | E186: 170000 | F186: 0.1854417331
B187: 27 Mar 2020 | C187: 105000 | D187: =C187/91673000*100 -> 0.114537541 | E187: 275000 | F187: 0.2999792742
B188: 31 Mar 2020 | C188: 22101 | D188: =C188/91673000*100 -> 0.02410851614 | E188: 297101 | F188: 0.3240877903
B189: At the end of the year | E189: 297101 | F189: 0.32
B192: Note: - The above information is based on the weekly beneficiory position received from depositories.
A195: (V) | B195: Shareholding of Directors and Key Managerial Personnel:
A197: Sl. No. | C197: Shareholding at the beginning of the year (1st April, 2018) | E197: Cumulative Shareholding during the year (1st April, 2018 to 31st March, 2019)
B198: For Each of the Directors and KMP | C198: No. of Shares | D198: % of total shares of the company | E198: No. of Shares | F198: % of total shares of the company
A199: A | B199: DIRECTORS
A200: 1 | B200: Dr Prathap C Reddy
B201: At the beginning of the year | C201: 237187 | D201: =C201/91670000*100 -> 0.2587400458 | E201: 237187 | F201: =E201/91670000*100 -> 0.2587400458
B202: Increase/Decrease during the year | C202: - | D202: - | E202: - | F202: -
B203: At the end of the year | E203: 237187 | F203: =E203/91670000*100 -> 0.2587400458
A205: 2 | B205: Ms Suneeta Reddy
B206: At the beginning of the year | C206: 138293 | D206: =C206/91670000*100 -> 0.1508596051 | E206: =C206 -> 138293 | F206: =D206 -> 0.1508596051
B207: Increase/Decrease during the year | C207: - | D207: - | E207: - | F207: -
B208: At the end of the year | E208: =E206 -> 138293 | F208: =F206 -> 0.1508596051
A210: 3 | B210: Ms. Shobana Kamineni
B211: At the beginning of the year | C211: 116918 | D211: =C211/91670000*100 -> 0.1275422712 | E211: =C211 -> 116918 | F211: =E211/91670000*100 -> 0.1275422712
B212: Increase/Decrease during the year | C212: - | D212: - | E212: - | F212: -
B213: At the end of the year | C213: - | D213: - | E213: 116918 | F213: 0.13
A215: 4 | B215: Mr. P. Shivakumar*
B216: At the beginning of the year | C216: - | D216: - | E216: - | F216: -
B217: Increase/Decrease during the year | C217: - | D217: - | E217: - | F217: -
B218: At the end of the year | C218: - | D218: - | E218: - | F218: -
A220: 5 | B220: Mr. Deepak Vaidya
B221: At the beginning of the year | C221: - | D221: - | E221: - | F221: -
B222: Increase/Decrease during the year | C222: - | D222: - | E222: - | F222: -
B223: At the end of the year | C223: - | D223: - | E223: - | F223: -
A225: 6 | B225: Mr. S. Regunathan
B226: At the beginning of the year | C226: - | D226: - | E226: - | F226: -
B227: Increase/Decrease during the year | C227: - | D227: - | E227: - | F227: -
B228: At the end of the year | C228: - | D228: - | E228: - | F228: -
A230: 7 | B230: Mr. Satnam Arora
B231: At the beginning of the year | C231: - | D231: - | E231: - | F231: -
... 36 more rows

Sheet V
A2: V | B2: INDEBTEDNESS
A4: Indebtedness of the Company including interest outstanding/accrued but not due for payment
F5: ( Amount in Millions)
A6: Sl.No. | B6: Description | C6: Secured Loans excluding deposits | D6: Unsecured Loans | E6: Deposits | F6: Total Indebtedness
B7: Indebtedness at the beginning of the financial year
A8: i) | B8: Principal Amount | C8: 210 | D8: 0 | E8: 0 | F8: 210
A9: ii) | B9: Interest due but not paid
A10: iii) | B10: Interest accrued but not due
B11: Total (i+ii +iii) | C11: 210 | D11: 0 | E11: 0 | F11: 210
B13: Change in Indebtedness during the financial year
B14: Addition | C14: 0 | D14: 0 | E14: 0 | F14: 0
B15: Reduction | C15: 210 | D15: 0 | E15: 0 | F15: 210
B16: Net Change | C16: -210 | D16: 0 | E16: 0 | F16: -210
B17: Indebtedness at the end of the financial year
A18: i) | B18: Principal Amount | C18: 0 | D18: 0 | E18: 0 | F18: 0
A19: ii) | B19: Interest due but not paid
A20: iii) | B20: Interest accrued but not due
B21: Total (i+ii +iii) | C21: 0 | D21: 0 | E21: 0 | F21: 0

Sheet VI
A2: VI. | B2: REMUNERATION OF DIRECTORS AND KEY MANAGERIAL PERSONNEL
B4: A. Remuneration to Managing Director, Whole-time Directors and/or Manager:
B5: B5:F16D15BB5:F15 | D5: ( Amount in Millions)
B6: S.No. | C6: Particulars of Remuneration | D6: Name of Managing Director Mr Ashok Bajpai * | E6: Name of Managing Director Mr P Shivakumar ** | F6: Total Amount
B7: 1 | C7: Gross salary | D7: 3.64 | E7: 9.8 | F7: 13.44
C8: (a) Salary as per provisions contained in section 17(1) of the Income-tax Act, 1961
C9: (b) Value of perquisites u/s 17(2) of the Income-tax Act, 1961 | D9: 0.01 | E9: 0.24 | F9: 0.25
C10: (c) Profits in lieu of salary under section 17(3)of the Income-tax Act, 1961 | D10: - | E10: - | F10: -
B11: 2 | C11: Stock option | D11: - | E11: - | F11: -
B12: 3 | C12: Sweat Equity | D12: - | E12: - | F12: -
B13: 4 | C13: Commission - as% of profit - others, specify. | D13: - | E13: - | F13: -
C14: Total A | D14: 3.65 | E14: 10.04 | F14: 13.69
C15: Ceiling as per the Act | D15: Rs 23.40 (being 5% of the net profit of the Company calculated as per Section 198 of the Companies Act, 2013)
C18: * Resigned from the position of Managing Director of the Company w.e.f. 15-06-2019
B22: B. Remuneration to other directors:
I23: (Amount in Millions)
B24: SL. No | C24: Particulars of Remuneration | D24: Name | J24: Total Amount
B25: 1 | C25: Independent Directors | D25: Mr Deepak Vaidya | E25: Mr T. S Naryanasami | F25: Mr Satnam Arora | G25: Mr. S. Regunathan | H25: Dr Arun Rai | I25: Mr Vinayak Chatterjee
C26: (a) Fee for attending Board committee meetings | D26: 0.16 | E26: 0.1 | F26: 0.14 | G26: 0.26 | H26: 0.06 | I26: 0.06 | J26: 0.78
C27: (b) Commission | D27: - | E27: - | G27: - | H27: - | I27: - | J27: -
C28: (c) Others | D28: - | E28: - | G28: - | H28: - | I28: - | J28: -
C29: Total (1) | J29: 0.78
I31: (Amount in Millions)
B32: SL.No | C32: Particulars of Remuneration | D32: Name
B33: 2 | C33: Other Non Executive Directors | D33: Dr Prathap C. Reddy | E33: Ms. Suneeta Reddy | F33: Ms. Shobana Kamineni | G33: Ms. Vineeta Rai | H33: Ms. Madhumita Ganguli | I33: Total Amount
C34: (a) Fee for attending Board committee meetings | D34: 0.08 | E34: 0.2 | F34: 0.06 | G34: 0.14 | H34: 0.04 | I34: 0.52
C35: (b) Commission
C36: (c) Others | D36: - | F36: - | G36: - | H36: - | I36: -
C37: Total (2) | I37: =I34+I35 -> 0.52
C39: Total(B)=(1+2) | I39: =J29+I37 -> 1.3
C40: Total Managerial Remuneration (A+B) | D40: Rs 14.99
C41: Overall Ceiling as per the Act | D41: Rs 51.49 (being 11% of the net profit of the Company calculated as per Section 198 of the Companies Act, 2013)
B46: C. Remuneration to Key Managerial Personnel other than MD/Manager/WTD
D47: (Amount in Millions)
B48: S.No. | C48: Particulars of Remuneration | D48: Mr A.K. Singhal-Vice President cum Company Secretary * | E48: Mr C.P Tyagi-Chief Financial Officer | F48: Total Amount
B50: 1 | C50: Gross salary | D50: 12.33 | E50: 8.94 | F50: 21.27
C51: (a) Salary as per provisions contained in section 17(1) of the Income-tax Act, 1961
C52: (b) Value of perquisites u/s 17(2) Income-tax Act, 1961 | D52: 0.9 | E52: 0.45 | F52: 1.35
C53: (c) Profits in lieu of salary under section 17(3) Income-tax Act, 1961 | D53: - | E53: - | F53: -
B54: 2 | C54: Stock option | D54: - | E54: - | F54: -
B55: 3 | C55: Sweat Equity | D55: - | E55: - | F55: -
B56: 4 | C56: Commission - as% of profit - others, specify. | D56: - | E56: - | F56: -
B57: 5 | C57: Others, please specify | D57: - | E57: - | F57: -
C58: Total | D58: 13.23 | E58: 9.39 | F58: 22.62
C60: * Superannuated from the position of Vice President cum Company Secretary of the Company w.e.f. 15-07-2020

Sheet VII
A2: VII. PENALTIES / PUNISHMENT/ COMPOUNDING OF OFFENCES: NONE
A4: Type | B4: Section of the Companies Act | C4: Brief Description | D4: Details of Penalty/Punishment/ Compounding Fees imposed | E4: Authority (RD/NCLT/COURT) | F4: Appeal made if any (give details)
A6: A | B6: COMPANY
A7: Penalty
A8: Punishment
A9: Compounding
A11: B | B11: DIRECTORS
A12: Penalty
A13: Punishment
A14: Compounding
A16: C | B16: OTHER OFFICERS IN DEFAULT
A17: Penalty
A18: Punishment
A19: Compounding
